Workbook

Sheet Harvest models
A1: HARVEST MODELS -- FIXED QUOTA AND FIXED EFFORT | J1: Logistic growth model: | L1: MSY quota: | M1: MSY effort:
J2: Nt+1 = Nt + RNt * ((K - Nt) / K) | L2: ΔNt = (R * K) / 4 | M2: E = R / 2
A3: R = | B3: 0.5
A4: K = | B4: 2000
B5: Unharvested | D5: Harvested
D6: Fixed-quota | E6: Q = | F6: 250 | G6: Fixed-effort | H6: E = | I6: 0.25
F7: Actual | I7: Actual
A8: Time | B8: Nt | C8: ΔNt | D8: Nt | E8: Quota | F8: harvest | G8: Nt | H8: Effort line | I8: harvest
A9: 0 | B9: 1 | C9: =B10-B9 -> 0.49975 | D9: =$B$4 -> 2000 | E9: =$F$6 -> 250 | F9: =IF(D9>$F$6,$F$6,D9) -> 250 | G9: =$B$4 -> 2000 | H9: =$I$6*B9 -> 0.25 | I9: =IF(G9>$I$6*G9,$I$6*G9,G9) -> 500
A10: 1 | B10: =B9+$B$3*B9*($B$4-B9)/$B$4 -> 1.49975 | C10: =B11-B10 -> 0.7493126875 | D10: =IF(D9+$B$3*D9*($B$4-D9)/$B$4-$F$6>0,D9+$B$3*D9*($B$4-D9)/$B$4-$F$6,0) -> 1750 | E10: =$F$6 -> 250 | F10: =IF(D10>$F$6,$F$6,D10) -> 250 | G10: =IF(G9+$B$3*G9*($B$4-G9)/$B$4-I9>0,G9+$B$3*G9*($B$4-G9)/$B$4-I9,0) -> 1500 | H10: =$I$6*B10 -> 0.3749375 | I10: =IF(G10>$I$6*G10,$I$6*G10,G10) -> 375
A11: 2 | B11: =B10+$B$3*B10*($B$4-B10)/$B$4 -> 2.249062687 | C11: 1.123266773 | D11: =IF(D10+$B$3*D10*($B$4-D10)/$B$4-$F$6>0,D10+$B$3*D10*($B$4-D10)/$B$4-$F$6,0) -> 1609.375 | E11: 250 | F11: 250 | G11: =IF(G10+$B$3*G10*($B$4-G10)/$B$4-I10>0,G10+$B$3*G10*($B$4-G10)/$B$4-I10,0) -> 1312.5 | H11: 0.5622656719 | I11: 328.125
A12: 3 | B12: 3.37232946 | C12: 1.683321579 | D12: 1516.540527 | E12: 250 | F12: 250 | G12: 1209.960938 | H12: 0.8430823651 | I12: 302.4902344
A13: 4 | B13: 5.055651039 | C13: 2.521435618 | D13: 1449.836998 | E13: 250 | F13: 250 | G13: 1146.449804 | H13: 1.26391276 | I13: 286.6124511
A14: 5 | B14: 7.577086657 | C14: 3.774190268 | D14: 1399.248667 | E14: 250 | F14: 250 | G14: 1104.475467 | H14: 1.894271664 | I14: 276.1188667
A15: 6 | B15: 11.35127692 | C15: 5.643425591 | D15: 1359.398792 | E15: 250 | F15: 250 | G15: 1075.627819 | H15: 2.837819231 | I15: 268.9069549
A16: 7 | B16: 16.99470252 | C16: 8.425146279 | D16: 1327.106919 | E16: 250 | F16: 250 | G16: 1055.290973 | H16: 4.248675629 | I16: 263.8227432
A17: 8 | B17: 25.41984879 | C17: 12.54838222 | D17: 1300.357185 | E17: 250 | F17: 250 | G17: 1040.703957 | H17: 6.354962199 | I17: 260.1759892
A18: 9 | B18: 37.96823101 | C18: 18.62371887 | D18: 1277.803576 | E18: 250 | F18: 250 | G18: 1030.113764 | H18: 9.492057753 | I18: 257.5284411
A19: 10 | B19: 56.59194988 | C19: 27.49531274 | D19: 1258.509869 | E19: 250 | F19: 250 | G19: 1022.358614 | H19: 14.14798747 | I19: 255.5896534
A20: 11 | B20: 84.08726262 | C20: 40.27596438 | D20: 1241.803031 | E20: 250 | F20: 250 | G20: 1016.643983 | H20: 21.02181566 | I20: 254.1609958
A21: 12 | B21: 124.363227 | C21: 58.31506044 | D21: 1227.185854 | E21: 250 | F21: 250 | G21: 1012.413732 | H21: 31.09080675 | I21: 253.103433
A22: 13 | B22: 182.6782874 | C22: 82.99630454 | D22: 1214.282501 | E22: 250 | F22: 250 | G22: 1009.271774 | H22: 45.66957186 | I22: 252.3179434
A23: 14 | B23: 265.674592 | C23: 115.1915488 | D23: 1202.803254 | E23: 250 | F23: 250 | G23: 1006.932339 | H23: 66.418648 | I23: 251.7330847
A24: 15 | B24: 380.8661408 | C24: 154.1683161 | D24: 1192.520964 | E24: 250 | F24: 250 | G24: 1005.18724 | H24: 95.21653519 | I24: 251.29681
A25: 16 | B25: 535.0344569 | C25: 195.9517609 | D25: 1183.254883 | E25: 250 | F25: 250 | G25: 1003.883703 | H25: 133.7586142 | I25: 250.9709258
A26: 17 | B26: 730.9862178 | C26: 231.9078962 | D26: 1174.859295 | E26: 250 | F26: 250 | G26: 1002.909006 | H26: 182.7465544 | I26: 250.7272516
A27: 18 | B27: 962.894114 | C27: 249.6557883 | D27: 1167.215352 | E27: 250 | F27: 250 | G27: 1002.179639 | H27: 240.7235285 | I27: 250.5449098
A28: 19 | B28: 1212.549902 | C28: 238.7056348 | D28: 1160.225109 | E28: 250 | F28: 250 | G28: 1001.633542 | H28: 303.1374756 | I28: 250.4083854
A29: 20 | B29: 1451.255537 | C29: 199.0921101 | D29: 1153.807087 | E29: 250 | F29: 250 | G29: 1001.224489 | H29: 362.8138843 | I29: 250.3061223
A30: 21 | B30: 1650.347647 | C30: 144.2619845 | D30: 1147.892932 | E30: 250 | F30: 250 | G30: 1000.917992 | H30: 412.5869118 | I30: 250.229498
A31: 22 | B31: 1794.609632 | C31: 92.14888334 | D31: 1142.424852 | E31: 250 | F31: 250 | G31: 1000.688283 | H31: 448.6524079 | I31: 250.1720708
A32: 23 | B32: 1886.758515 | C32: 53.41483404 | D32: 1137.353643 | E32: 250 | F32: 250 | G32: 1000.516094 | H32: 471.6896287 | I32: 250.1290235
A33: 24 | B33: 1940.173349 | C33: 29.01851846 | D33: 1132.637137 | E33: 250 | F33: 250 | G33: 1000.387004 | H33: 485.0433372 | I33: 250.096751
A34: 25 | B34: 1969.191867 | C34: 15.16678102 | D34: 1128.238984 | E34: 250 | F34: 250 | G34: 1000.290216 | H34: 492.2979669 | I34: 250.0725539
A35: 26 | B35: 1984.358648 | C35: 7.759512796 | D35: 1124.127675 | E35: 250 | F35: 250 | G35: 1000.217641 | H35: 496.0896621 | I35: 250.0544101
A36: 27 | B36: 1992.118161 | C36: 3.925388522 | D36: 1120.275755 | E36: 250 | F36: 250 | G36: 1000.163219 | H36: 498.0295403 | I36: 250.0408047
A37: 28 | B37: 1996.04355 | C37: 1.974311732 | D37: 1116.659191 | E37: 250 | F37: 250 | G37: 1000.122407 | H37: 499.0108874 | I37: 250.0306018
A38: 29 | B38: 1998.017862 | C38: 0.9900870223 | D38: 1113.256849 | E38: 250 | F38: 250 | G38: 1000.091802 | H38: 499.5044654 | I38: 250.0229504
A39: 30 | B39: 1999.007949 | C39: 0.4957796879 | D39: 1110.050071 | E39: 250 | F39: 250 | G39: 1000.068849 | H39: 499.7519871 | I39: 250.0172123
A40: 31 | B40: 1999.503728 | C40: 0.248074314 | D40: 1107.022316 | E40: 250 | F40: 250 | G40: 1000.051636 | H40: 499.8759321 | I40: 250.0129089
A41: 32 | B41: 1999.751803 | C41: 0.1240833279 | D41: 1104.158872 | E41: 250 | F41: 250 | G41: 1000.038726 | H41: 499.9379506 | I41: 250.0096815
A42: 33 | B42: 1999.875886 | C42: 0.06205321339 | D42: 1101.446604 | E42: 250 | F42: 250 | G42: 1000.029044 | H42: 499.9689715 | I42: 250.0072611
A43: 34 | B43: 1999.937939 | C43: 0.03102949488 | D43: 1098.873751 | E43: 250 | F43: 250 | G43: 1000.021783 | H43: 499.9844848 | I43: 250.0054457
A44: 35 | B44: 1999.968969 | C44: 0.01551546959 | D44: 1096.429746 | E44: 250 | F44: 250 | G44: 1000.016337 | H44: 499.9922421 | I44: 250.0040843
A45: 36 | B45: 1999.984484 | C45: 0.007757915348 | D45: 1094.105072 | E45: 250 | F45: 250 | G45: 1000.012253 | H45: 499.996121 | I45: 250.0030632
A46: 37 | B46: 1999.992242 | C46: 0.003879002813 | D46: 1091.891131 | E46: 250 | F46: 250 | G46: 1000.00919 | H46: 499.9980605 | I46: 250.0022974
A47: 38 | B47: 1999.996121 | C47: 0.001939512692 | D47: 1089.780136 | E47: 250 | F47: 250 | G47: 1000.006892 | H47: 499.9990302 | I47: 250.001723
A48: 39 | B48: 1999.99806 | C48: 0.0009697591672 | D48: 1087.765018 | E48: 250 | F48: 250 | G48: 1000.005169 | H48: 499.9995151 | I48: 250.0012923
A49: 40 | B49: 1999.99903 | C49: 0.0004848802889 | D49: 1085.839343 | E49: 250 | F49: 250 | G49: 1000.003877 | H49: 499.9997576 | I49: 250.0009692
A50: 41 | B50: 1999.999515 | C50: 0.0002424403208 | D50: 1083.997245 | E50: 250 | F50: 250 | G50: 1000.002908 | H50: 499.9998788 | I50: 250.0007269
A51: 42 | B51: 1999.999758 | C51: 0.0001212202044 | D51: 1082.233361 | E51: 250 | F51: 250 | G51: 1000.002181 | H51: 499.9999394 | I51: 250.0005452
A52: 43 | B52: 1999.999879 | C52: 6.061011322e-05 | D52: 1080.54278 | E52: 250 | F52: 250 | G52: 1000.001636 | H52: 499.9999697 | I52: 250.0004089
A53: 44 | B53: 1999.999939 | C53: 3.030505945e-05 | D53: 1078.920995 | E53: 250 | F53: 250 | G53: 1000.001227 | H53: 499.9999848 | I53: 250.0003067
A54: 45 | B54: 1999.99997 | C54: 1.51525303e-05 | D54: 1077.363864 | E54: 250 | F54: 250 | G54: 1000.00092 | H54: 499.9999924 | I54: 250.00023
A55: 46 | B55: 1999.999985 | C55: 7.576265489e-06 | D55: 1075.867572 | E55: 250 | F55: 250 | G55: 1000.00069 | H55: 499.9999962 | I55: 250.0001725
A56: 47 | B56: 1999.999992 | C56: 3.788132744e-06 | D56: 1074.4286 | E56: 250 | F56: 250 | G56: 1000.000517 | H56: 499.9999981 | I56: 250.0001294
A57: 48 | B57: 1999.999996 | C57: 1.894066372e-06 | D57: 1073.043696 | E57: 250 | F57: 250 | G57: 1000.000388 | H57: 499.9999991 | I57: 250.000097
A58: 49 | B58: 1999.999998 | C58: =B59-B58 -> 9.470331861e-07 | D58: 1071.70985 | E58: 250 | F58: 250 | G58: 1000.000291 | H58: 499.9999995 | I58: 250.0000728
A59: 50 | B59: =B58+$B$3*B58*($B$4-B58)/$B$4 -> 1999.999999 | C59: -1999.999999 | D59: =IF(D58+$B$3*D58*($B$4-D58)/$B$4-$F$6>0,D58+$B$3*D58*($B$4-D58)/$B$4-$F$6,0) -> 1070.424275 | E59: 250 | F59: 250 | G59: =IF(G58+$B$3*G58*($B$4-G58)/$B$4-I58>0,G58+$B$3*G58*($B$4-G58)/$B$4-I58,0) -> 1000.000218 | H59: 499.9999998 | I59: 250.0000546

Sheet Stochasticity
A1: HARVEST MODELS -- INCORPORATING STOCHASTICITY
B3: Mean | C3: SD
A4: R = | B4: 0.5 | C4: 0.2
A5: K = | B5: 2000
B6: Unharvested | D6: Harvested
E7: Fixed-quota | F7: Q = | G7: 250 | H7: Fixed-effort | I7: E = | J7: 0.25
G8: Actual | J8: Actual
A9: Time | B9: Nt | C9: ΔNt | D9: Draw | E9: Nt | F9: Quota | G9: harvest | H9: Nt | I9: Effort line | J9: harvest
A10: 0 | B10: 1 | C10: =B11-B10 -> 0.49975 | E10: =$B$5 -> 2000 | F10: =$G$7 -> 250 | G10: =IF(E10>$G$7,$G$7,E10) -> 250 | H10: =$B$5 -> 2000 | I10: =$J$7*B10 -> 0.25 | J10: =IF(H10>$J$7*H10,$J$7*H10,H10) -> 500
A11: 1 | B11: =B10+$B$4*B10*($B$5-B10)/$B$5 -> 1.49975 | C11: =B12-B11 -> 0.7493126875 | D11: =NORMINV(RAND(),$B$4,$C$4) -> 0.7728125115 | E11: =IF(E10+D11*E10*($B$5-E10)/$B$5-$G$7>0,E10+D11*E10*($B$5-E10)/$B$5-$G$7,0) -> 1750 | F11: =$G$7 -> 250 | G11: =IF(E11>$G$7,$G$7,E11) -> 250 | H11: =IF(H10+D11*H10*($B$5-H10)/$B$5-J10>0,H10+D11*H10*($B$5-H10)/$B$5-J10,0) -> 1500 | I11: 0.3749375 | J11: =IF(H11>$J$7*H11,$J$7*H11,H11) -> 375
A12: 2 | B12: =B11+$B$4*B11*($B$5-B11)/$B$5 -> 2.249062687 | C12: 1.123266773 | D12: 0.9369493494 | E12: =IF(E11+D12*E11*($B$5-E11)/$B$5-$G$7>0,E11+D12*E11*($B$5-E11)/$B$5-$G$7,0) -> 1704.95767 | F12: 250 | G12: 250 | H12: =IF(H11+D12*H11*($B$5-H11)/$B$5-J11>0,H11+D12*H11*($B$5-H11)/$B$5-J11,0) -> 1476.356006 | I12: 0.5622656719 | J12: 369.0890015
A13: 3 | B13: 3.37232946 | C13: 1.683321579 | D13: 0.1695831821 | E13: 1497.610781 | F13: 250 | G13: 250 | H13: 1172.818108 | I13: 0.8430823651 | J13: 293.204527
A14: 4 | B14: 5.055651039 | C14: 2.521435618 | D14: 0.4293491808 | E14: 1409.128403 | F14: 250 | G14: 250 | H14: 1087.876679 | I14: 1.26391276 | J14: 271.9691697
A15: 5 | B15: 7.577086657 | C15: 3.774190268 | D15: 0.4220819389 | E15: 1334.844058 | F15: 250 | G15: 250 | H15: 1025.318755 | I15: 1.894271664 | J15: 256.3296887
A16: 6 | B16: 11.35127692 | C16: 5.643425591 | D16: 0.546812863 | E16: 1327.596012 | F16: 250 | G16: 250 | H16: 1042.220233 | I16: 2.837819231 | J16: 260.5550583
A17: 7 | B17: 16.99470252 | C17: 8.425146279 | D17: 0.4106410016 | E17: 1260.881692 | F17: 250 | G17: 250 | H17: 986.6196821 | I17: 4.248675629 | J17: 246.6549205
A18: 8 | B18: 25.41984879 | C18: 12.54838222 | D18: 0.600545441 | E18: 1290.718074 | F18: 250 | G18: 250 | H18: 1040.183723 | I18: 6.354962199 | J18: 260.0459308
A19: 9 | B19: 37.96823101 | C19: 18.62371887 | D19: 0.5179728214 | E19: 1277.815731 | F19: 250 | G19: 250 | H19: 1038.70601 | I19: 9.492057753 | J19: 259.6765024
A20: 10 | B20: 56.59194988 | C20: 27.49531274 | D20: 0.5107608904 | E20: 1263.48551 | F20: 250 | G20: 250 | H20: 1034.027353 | I20: 14.14798747 | J20: 258.5068382
A21: 11 | B21: 84.08726262 | C21: 40.27596438 | D21: 0.5819107987 | E21: 1284.241443 | F21: 250 | G21: 250 | H21: 1066.139028 | I21: 21.02181566 | J21: 266.534757
A22: 12 | B22: 124.363227 | C22: 58.31506044 | D22: 0.7744204209 | E22: 1390.167702 | F22: 250 | G22: 250 | H22: 1185.12068 | I22: 31.09080675 | J22: 296.2801701
A23: 13 | B23: 182.6782874 | C23: 82.99630454 | D23: 0.5030546555 | E23: 1353.404815 | F23: 250 | G23: 250 | H23: 1131.748081 | I23: 45.66957186 | J23: 282.9370201
A24: 14 | B24: 265.674592 | C24: 115.1915488 | D24: 0.4072662311 | E24: 1281.60518 | F24: 250 | G24: 250 | H24: 1048.909603 | I24: 66.418648 | J24: 262.2274006
A25: 15 | B25: 380.8661408 | C25: 154.1683161 | D25: 0.6681799176 | E25: 1339.201311 | F25: 250 | G25: 250 | H25: 1119.972968 | I25: 95.21653519 | J25: 279.9932419
A26: 16 | B26: 535.0344569 | C26: 195.9517609 | D26: 0.5270317649 | E26: 1322.397707 | F26: 250 | G26: 250 | H26: 1099.702689 | I26: 133.7586142 | J26: 274.9256722
A27: 17 | B27: 730.9862178 | C27: 231.9078962 | D27: 0.49170105 | E27: 1292.694459 | F27: 250 | G27: 250 | H27: 1068.183634 | I27: 182.7465544 | J27: 267.0459084
A28: 18 | B28: 962.894114 | C28: 249.6557883 | D28: 0.7451899161 | E28: 1383.36919 | F28: 250 | G28: 250 | H28: 1172.000486 | I28: 240.7235285 | J28: 293.0001216
A29: 19 | B29: 1212.549902 | C29: 238.7056348 | D29: 0.3916374008 | E29: 1300.408037 | F29: 250 | G29: 250 | H29: 1069.025932 | I29: 303.1374756 | J29: 267.256483
A30: 20 | B30: 1451.255537 | C30: 199.0921101 | D30: 0.4790210688 | E30: 1268.303946 | F30: 250 | G30: 250 | H30: 1040.138816 | I30: 362.8138843 | J30: 260.0347041
A31: 21 | B31: 1650.347647 | C31: 144.2619845 | D31: 0.7171857742 | E31: 1351.082804 | F31: 250 | G31: 250 | H31: 1138.119262 | I31: 412.5869118 | J31: 284.5298154
A32: 22 | B32: 1794.609632 | C32: 92.14888334 | D32: 0.6205311807 | E32: 1373.105326 | F32: 250 | G32: 250 | H32: 1157.936121 | I32: 448.6524079 | J32: 289.4840304
A33: 23 | B33: 1886.758515 | C33: 53.41483404 | D33: 0.3156706686 | E33: 1258.968785 | F33: 250 | G33: 250 | H33: 1022.350409 | I33: 471.6896287 | J33: 255.5876024
A34: 24 | B34: 1940.173349 | C34: 29.01851846 | D34: 0.1864850808 | E34: 1095.95803 | F34: 250 | G34: 250 | H34: 859.9587691 | I34: 485.0433372 | J34: 214.9896923
A35: 25 | B35: 1969.191867 | C35: 15.16678102 | D35: 0.62458718 | E35: 1155.376038 | F35: 250 | G35: 250 | H35: 951.1381066 | I35: 492.2979669 | J35: 237.7845266
A36: 26 | B36: 1984.358648 | C36: 7.759512796 | D36: 0.4013353589 | E36: 1101.199256 | F36: 250 | G36: 250 | H36: 913.5421684 | I36: 496.0896621 | J36: 228.3855421
A37: 27 | B37: 1992.118161 | C37: 3.925388522 | D37: 0.3469358685 | E37: 1022.890655 | F37: 250 | G37: 250 | H37: 857.3278953 | I37: 498.0295403 | J37: 214.3319738
A38: 28 | B38: 1996.04355 | C38: 1.974311732 | D38: 0.4880808809 | E38: 1016.803223 | F38: 250 | G38: 250 | H38: 882.0688383 | I38: 499.0108874 | J38: 220.5172096
A39: 29 | B39: 1998.017862 | C39: 0.9900870223 | D39: 0.7760297249 | E39: 1154.70853 | F39: 250 | G39: 250 | H39: 1044.170074 | I39: 499.5044654 | J39: 261.0425185
A40: 30 | B40: 1999.007949 | C40: 0.4957796879 | D40: 0.5991524326 | E40: 1197.11447 | F40: 250 | G40: 250 | H40: 1082.1193 | I40: 499.7519871 | J40: 270.529825
A41: 31 | B41: 1999.503728 | C41: 0.248074314 | D41: 0.5014825881 | E41: 1188.113434 | F41: 250 | G41: 250 | H41: 1060.639875 | I41: 499.8759321 | J41: 265.1599688
A42: 32 | B42: 1999.751803 | C42: 0.1240833279 | D42: 1.002046366 | E42: 1421.407078 | F42: 250 | G42: 250 | H42: 1294.66073 | I42: =$J$7*B42 -> 499.9379506 | J42: 323.6651824
A43: 33 | B43: 1999.875886 | C43: 0.06205321339 | D43: 0.3571286853 | E43: 1318.261263 | F43: 250 | G43: 250 | H43: 1134.056051 | I43: 499.9689715 | J43: 283.5140126
A44: 34 | B44: 1999.937939 | C44: 0.03102949488 | D44: 0.5532117495 | E44: 1316.849665 | F44: 250 | G44: 250 | H44: 1122.177022 | I44: 499.9844848 | J44: 280.5442554
A45: 35 | B45: 1999.968969 | C45: 0.01551546959 | D45: 0.8064450683 | E45: 1429.591193 | F45: 250 | G45: 250 | H45: 1238.836307 | I45: 499.9922421 | J45: 309.7090768
A46: 36 | B46: 1999.984484 | C46: 0.007757915348 | D46: 0.6693086917 | E46: 1452.48555 | F46: 250 | G46: 250 | H46: 1244.691961 | I46: 499.996121 | J46: 311.1729903
A47: 37 | B47: 1999.992242 | C47: 0.003879002813 | D47: 0.2682761231 | E47: 1309.159759 | F47: 250 | G47: 250 | H47: 1059.625629 | I47: 499.9980605 | J47: 264.9064073
A48: 38 | B48: 1999.996121 | C48: 0.001939512692 | D48: 0.5172430031 | E48: 1293.062281 | F48: 250 | G48: 250 | H48: 1052.421268 | I48: 499.9990302 | J48: 263.1053171
A49: 39 | B49: 1999.99806 | C49: 0.0009697591672 | D49: 0.6163051323 | E49: 1324.749009 | F49: 250 | G49: 250 | H49: 1096.621717 | I49: 499.9995151 | J49: 274.1554294
A50: 40 | B50: 1999.99903 | C50: 0.0004848802889 | D50: 0.8586035666 | E50: 1458.775803 | F50: 250 | G50: 250 | H50: 1247.760215 | I50: 499.9997576 | J50: 311.9400536
A51: 41 | B51: 1999.999515 | C51: 0.0002424403208 | D51: 0.2815983235 | E51: 1319.940228 | F51: 250 | G51: 250 | H51: 1067.976349 | I51: 499.9998788 | J51: 266.9940872
A52: 42 | B52: 1999.999758 | C52: 0.0001212202044 | D52: 0.3584555324 | E52: 1230.821926 | F52: 250 | G52: 250 | H52: 979.3818549 | I52: 499.9999394 | J52: 244.8454637
A53: 43 | B53: 1999.999879 | C53: 6.061011322e-05 | D53: -0.08158924795 | E53: 942.2007892 | F53: 250 | G53: 250 | H53: 693.7591093 | I53: 499.9999697 | J53: 173.4397773
A54: 44 | B54: 1999.999939 | C54: 3.030505945e-05 | D54: 0.6958846379 | E54: 1038.98072 | F54: 250 | G54: 250 | H54: 835.6304084 | I54: 499.9999848 | J54: 208.9076021
A55: 45 | B55: 1999.99997 | C55: 1.51525303e-05 | D55: 0.4330069236 | E55: 1005.155206 | F55: 250 | G55: 250 | H55: 837.3769155 | I55: 499.9999924 | J55: 209.3442289
A56: 46 | B56: 1999.999985 | C56: 7.576265489e-06 | D56: 0.6401335589 | E56: 1075.213479 | F56: 250 | G56: 250 | H56: 939.6348944 | I56: 499.9999962 | J56: 234.9087236
A57: 47 | B57: 1999.999992 | C57: 3.788132744e-06 | D57: 0.8287907385 | E57: 1237.264586 | F57: 250 | G57: 250 | H57: 1117.611506 | I57: 499.9999981 | J57: 279.4028764
A58: 48 | B58: 1999.999996 | C58: 1.894066372e-06 | D58: 0.4740277768 | E58: 1210.9359 | F58: 250 | G58: 250 | H58: 1071.944031 | I58: 499.9999991 | J58: 267.9860078
A59: 49 | B59: 1999.999998 | C59: 9.470331861e-07 | D59: 0.3796531711 | E59: 1142.31635 | F59: 250 | G59: 250 | H59: 992.8020771 | I59: 499.9999995 | J59: 248.2005193
A60: 50 | B60: 1999.999999 | C60: -1999.999999 | D60: 0.3249432019 | E60: 1051.49726 | F60: 250 | G60: 250 | H60: 907.0647411 | I60: 499.9999998 | J60: 226.7661853
A62: Quota | B62: Time
A63: Trial | B63: 0 | C63: 1 | D63: 2 | E63: 3 | F63: 4 | G63: 5 | H63: 6 | I63: 7 | J63: 8 | K63: 9 | L63: 10 | M63: 11 | N63: 12 | O63: 13 | P63: 14 | Q63: 15 | R63: 16 | S63: 17 | T63: 18 | U63: 19 | V63: 20 | W63: 21 | X63: 22 | Y63: 23 | Z63: 24 | AA63: 25 | AB63: 26 | AC63: 27 | AD63: 28 | AE63: 29 | AF63: 30 | AG63: 31 | AH63: 32 | AI63: 33 | AJ63: 34 | AK63: 35 | AL63: 36 | AM63: 37 | AN63: 38 | AO63: 39 | AP63: 40 | AQ63: 41 | AR63: 42 | AS63: 43 | AT63: 44 | AU63: 45 | AV63: 46 | AW63: 47 | AX63: 48 | AY63: 49 | AZ63: 50
A64: 1 | B64: 2000 | C64: 1750 | D64: 1540.749067 | E64: 1459.114204 | F64: 1491.277519 | G64: 1405.525042 | H64: 1365.961018 | I64: 1361.137572 | J64: 1141.278456 | K64: 1222.763389 | L64: 1076.034489 | M64: 1086.114901 | N64: 1039.616421 | O64: 952.3663156 | P64: 1017.805832 | Q64: 1026.722409 | R64: 971.2191988 | S64: 966.5898754 | T64: 1053.351429 | U64: 971.2645293 | V64: 1003.596236 | W64: 1117.631739 | X64: 977.0344377 | Y64: 971.1917625 | Z64: 871.8286841 | AA64: 910.6711107 | AB64: 968.4746377 | AC64: 986.1606545 | AD64: 931.6710824 | AE64: 992.8462519 | AF64: 1143.46983 | AG64: 1285.246089 | AH64: 1265.817725 | AI64: 1284.173808 | AJ64: 1106.228092 | AK64: 979.2436399 | AL64: 1020.349341 | AM64: 1152.30011 | AN64: 1248.399923 | AO64: 1257.86474 | AP64: 1143.14654 | AQ64: 921.8853484 | AR64: 937.2343186 | AS64: 940.5405909 | AT64: 852.9669974 | AU64: 869.339453 | AV64: 980.6545131 | AW64: 980.22898 | AX64: 1098.855009 | AY64: 1259.627367 | AZ64: 1192.03788
A65: 2 | B65: 2000 | C65: 1750 | D65: 1636.956051 | E65: 1624.21772 | F65: 1570.6799 | G65: 1555.906146 | H65: 1459.834158 | I65: 1411.968199 | J65: 1449.521204 | K65: 1340.264417 | L65: 1284.602145 | M65: 1340.41278 | N65: 1276.78706 | O65: 1436.508775 | P65: 1412.634546 | Q65: 1395.111648 | R65: 1182.614303 | S65: 1095.283814 | T65: 1179.942632 | U65: 1192.25711 | V65: 1281.498599 | W65: 1099.919403 | X65: 1117.518138 | Y65: 1220.804455 | Z65: 1219.900292 | AA65: 1103.406798 | AB65: 1190.468372 | AC65: 1069.965106 | AD65: 1028.061986 | AE65: 939.2384203 | AF65: 1090.058762 | AG65: 1112.916374 | AH65: 1267.129636 | AI65: 1176.890246 | AJ65: 954.8753588 | AK65: 1048.458507 | AL65: 1086.862602 | AM65: 923.9911627 | AN65: 934.7098459 | AO65: 934.4275297 | AP65: 1025.028828 | AQ65: 920.8720459 | AR65: 1023.046031 | AS65: 913.8553355 | AT65: 919.9182815 | AU65: 970.1069986 | AV65: 1022.076308 | AW65: 942.8817507 | AX65: 1066.931635 | AY65: 987.3952894 | AZ65: 938.5370657
A66: 3 | B66: 2000 | C66: 1750 | D66: 1636.62712 | E66: 1496.511353 | F66: 1368.160239 | G66: 1260.401694 | H66: 1287.478363 | I66: 1238.469056 | J66: 960.8465305 | K66: 879.2771505 | L66: 1030.937659 | M66: 783.6885969 | N66: 752.7715063 | O66: 787.2720855 | P66: 760.5331714 | Q66: 658.4440523 | R66: 556.5074737 | S66: 619.0786239 | T66: 387.8248976 | U66: 178.5010451 | V66: 17.6749092 | W66: 0 | X66: 0 | Y66: 0 | Z66: 0 | AA66: 0 | AB66: 0 | AC66: 0 | AD66: 0 | AE66: 0 | AF66: 0 | AG66: 0 | AH66: 0 | AI66: 0 | AJ66: 0 | AK66: 0 | AL66: 0 | AM66: 0 | AN66: 0 | AO66: 0 | AP66: 0 | AQ66: 0 | AR66: 0 | AS66: 0 | AT66: 0 | AU66: 0 | AV66: 0 | AW66: 0 | AX66: 0 | AY66: 0 | AZ66: 0
A67: 4 | B67: 2000 | C67: 1750 | D67: 1638.503681 | E67: 1641.761265 | F67: 1554.271844 | G67: 1490.678047 | H67: 1450.977402 | I67: 1376.422626 | J67: 1307.048057 | K67: 1423.538245 | L67: 1268.541483 | M67: 1216.039445 | N67: 1244.651499 | O67: 1268.373215 | P67: 1271.060424 | Q67: 1217.112002 | R67: 1284.120886 | S67: 1309.544495 | T67: 1311.684148 | U67: 1391.568216 | V67: 1324.448928 | W67: 1219.131999 | X67: 1163.554204 | Y67: 1388.14231 | Z67: 1260.670723 | AA67: 1260.901956 | AB67: 1326.686701 | AC67: 1284.857411 | AD67: 1363.397567 | AE67: 1392.173534 | AF67: 1372.263641 | AG67: 1499.917997 | AH67: 1528.36224 | AI67: 1603.800951 | AJ67: 1607.418514 | AK67: 1523.912623 | AL67: 1522.057109 | AM67: 1462.122963 | AN67: 1301.619842 | AO67: 1095.50263 | AP67: 1216.477647 | AQ67: 1290.214109 | AR67: 1350.910257 | AS67: 1380.919118 | AT67: 1233.862821 | AU67: 1292.3392 | AV67: 1341.220818 | AW67: 1358.007845 | AX67: 1254.030504 | AY67: 1168.163582 | AZ67: 1012.191189
A68: 5 | B68: 2000 | C68: 1750 | D68: 1591.315575 | E68: 1589.257833 | F68: 1515.662411 | G68: 1458.109428 | H68: 1291.928299 | I68: 1210.370432 | J68: 1361.459292 | K68: 1362.114836 | L68: 1216.466855 | M68: 1165.435756 | N68: 1114.239715 | O68: 1227.671337 | P68: 1228.818839 | Q68: 1102.677638 | R68: 1064.200187 | S68: 1041.041602 | T68: 950.9618587 | U68: 980.2484486 | V68: 1001.720865 | W68: 1073.664629 | X68: 1005.593284 | Y68: 1031.316322 | Z68: 1002.703689 | AA68: 1079.228885 | AB68: 1296.986511 | AC68: 1247.605579 | AD68: 1216.410694 | AE68: 1133.145176 | AF68: 1150.832875 | AG68: 1202.021346 | AH68: 1281.330637 | AI68: 1323.86517 | AJ68: 1358.220075 | AK68: 1253.430134 | AL68: 1206.564732 | AM68: 1141.916156 | AN68: 1018.27653 | AO68: 1196.303243 | AP68: 1009.273114 | AQ68: 1225.864931 | AR68: 1165.409366 | AS68: 1163.586056 | AT68: 1154.194467 | AU68: 1269.388203 | AV68: 1295.204916 | AW68: 1233.641069 | AX68: 1204.160116 | AY68: 996.4491335 | AZ68: 818.8660877
A69: 6 | B69: 2000 | C69: 1750 | D69: 1576.779346 | E69: 1601.036779 | F69: 1472.398687 | G69: 1375.385339 | H69: 1236.797414 | I69: 1280.676646 | J69: 1219.404161 | K69: 1342.995633 | L69: 1225.13449 | M69: 1376.097504 | N69: 1329.216271 | O69: 1319.764689 | P69: 1223.156341 | Q69: 1254.703665 | R69: 1445.862586 | S69: 1624.832228 | T69: 1522.595755 | U69: 1551.553192 | V69: 1423.683033 | W69: 1326.028793 | X69: 1332.463982 | Y69: 1389.403902 | Z69: 1405.537163 | AA69: 1378.222719 | AB69: 1268.896792 | AC69: 1287.726534 | AD69: 1363.001149 | AE69: 1252.2779 | AF69: 1102.594469 | AG69: 995.0420949 | AH69: 872.7894944 | AI69: 675.2736046 | AJ69: 716.9162234 | AK69: 771.6062455 | AL69: 766.9312606 | AM69: 756.837077 | AN69: 723.911343 | AO69: 735.885223 | AP69: 784.7425836 | AQ69: 836.7806203 | AR69: 801.7855095 | AS69: 564.0142971 | AT69: 635.541871 | AU69: 542.2809912 | AV69: 409.9831724 | AW69: 306.8826042 | AX69: 193.0437849 | AY69: 18.12386238 | AZ69: 0
A70: 7 | B70: 2000 | C70: 1750 | D70: 1660.639036 | E70: 1464.980036 | F70: 1405.987482 | G70: 1296.472956 | H70: 1232.035921 | I70: 1230.34669 | J70: 1281.211031 | K70: 1188.261846 | L70: 1181.634912 | M70: 1208.980016 | N70: 1168.749034 | O70: 1023.69689 | P70: 981.2919407 | Q70: 874.0916792 | R70: 829.2288366 | S70: 783.1070255 | T70: 785.8632073 | U70: 915.7711956 | V70: 867.3186031 | W70: 728.5064617 | X70: 756.8854876 | Y70: 716.5902536 | Z70: 603.9617406 | AA70: 535.108556 | AB70: 528.7105424 | AC70: 304.6911885 | AD70: 156.6818916 | AE70: 0 | AF70: 0 | AG70: 0 | AH70: 0 | AI70: 0 | AJ70: 0 | AK70: 0 | AL70: 0 | AM70: 0 | AN70: 0 | AO70: 0 | AP70: 0 | AQ70: 0 | AR70: 0 | AS70: 0 | AT70: 0 | AU70: 0 | AV70: 0 | AW70: 0 | AX70: 0 | AY70: 0 | AZ70: 0
A71: 8 | B71: 2000 | C71: 1750 | D71: 1563.625026 | E71: 1507.290787 | F71: 1456.25552 | G71: 1394.670333 | H71: 1440.891097 | I71: 1415.191931 | J71: 1516.38458 | K71: 1514.931039 | L71: 1500.883225 | M71: 1314.998954 | N71: 1221.608326 | O71: 996.1789146 | P71: 885.494359 | Q71: 946.1002582 | R71: 981.6469514 | S71: 1061.314679 | T71: 1104.548852 | U71: 1272.167407 | V71: 1145.940727 | W71: 1187.986505 | X71: 1292.61106 | Y71: 1030.479219 | Z71: 961.9207298 | AA71: 846.4718348 | AB71: 711.963327 | AC71: 736.1296511 | AD71: 810.0657425 | AE71: 822.0936767 | AF71: 661.1781148 | AG71: 536.5759256 | AH71: 413.6097246 | AI71: 344.3020994 | AJ71: 233.8100763 | AK71: 50.36067448 | AL71: 0 | AM71: 0 | AN71: 0 | AO71: 0 | AP71: 0 | AQ71: 0 | AR71: 0 | AS71: 0 | AT71: 0 | AU71: 0 | AV71: 0 | AW71: 0 | AX71: 0 | AY71: 0 | AZ71: 0
A72: 9 | B72: 2000 | C72: 1750 | D72: 1669.29831 | E72: 1588.107612 | F72: 1378.528005 | G72: 1365.493072 | H72: 1214.738827 | I72: 1213.799226 | J72: 1137.231845 | K72: 1053.821601 | L72: 1000.99035 | M72: 1139.31427 | N72: 961.8555135 | O72: 1133.877834 | P72: 1133.931562 | Q72: 1145.536655 | R72: 1034.695717 | S72: 1149.824033 | T72: 1129.577682 | U72: 1217.065468 | V72: 1211.796589 | W72: 1088.150231 | X72: 975.6655324 | Y72: 840.4913688 | Z72: 784.9839171 | AA72: 830.6023941 | AB72: 709.3938706 | AC72: 842.5462024 | AD72: 906.793032 | AE72: 916.1056179 | AF72: 978.9273407 | AG72: 809.2984429 | AH72: 789.5304145 | AI72: 727.6396662 | AJ72: 762.3253094 | AK72: 643.8723255 | AL72: 688.5799429 | AM72: 623.1084503 | AN72: 636.2499669 | AO72: 506.1312829 | AP72: 516.704091 | AQ72: 385.9782356 | AR72: 280.5653567 | AS72: 191.345412 | AT72: 0 | AU72: 0 | AV72: 0 | AW72: 0 | AX72: 0 | AY72: 0 | AZ72: 0
A73: 10 | B73: 2000 | C73: 1750 | D73: 1594.820851 | E73: 1446.7464 | F73: 1530.174011 | G73: 1476.381662 | H73: 1387.397566 | I73: 1465.167895 | J73: 1551.874201 | K73: 1530.965748 | L73: 1457.526945 | M73: 1258.963881 | N73: 1021.907321 | O73: 897.4671468 | P73: 925.4582561 | Q73: 966.1347592 | R73: 930.6761524 | S73: 904.7946093 | T73: 1013.331303 | U73: 860.4137636 | V73: 778.9096465 | W73: 839.7734421 | X73: 745.7813286 | Y73: 760.0310218 | Z73: 764.6491426 | AA73: 590.0825739 | AB73: 613.448533 | AC73: 435.4646323 | AD73: 279.0844343 | AE73: 151.0490482 | AF73: 0 | AG73: 0 | AH73: 0 | AI73: 0 | AJ73: 0 | AK73: 0 | AL73: 0 | AM73: 0 | AN73: 0 | AO73: 0 | AP73: 0 | AQ73: 0 | AR73: 0 | AS73: 0 | AT73: 0 | AU73: 0 | AV73: 0 | AW73: 0 | AX73: 0 | AY73: 0 | AZ73: 0
A74: 11 | B74: 2000 | C74: 1750 | D74: 1647.159704 | E74: 1573.157624 | F74: 1536.634794 | G74: 1416.352292 | H74: 1371.502729 | I74: 1376.889575 | J74: 1290.792856 | K74: 1300.024214 | L74: 1378.039149 | M74: 1260.630359 | N74: 1174.380264 | O74: 1266.805007 | P74: 1340.191738 | Q74: 1416.149615 | R74: 1388.69334 | S74: 1303.403349 | T74: 1324.512666 | U74: 1240.263002 | V74: 1361.895934 | W74: 1346.011639 | X74: 1274.630486 | Y74: 1422.399909 | Z74: 1307.251893 | AA74: 1317.568678 | AB74: 1129.683831 | AC74: 1192.704461 | AD74: 1162.474435 | AE74: 1265.41845 | AF74: 1344.0801 | AG74: 1123.072261 | AH74: 982.1013626 | AI74: 897.471552 | AJ74: 942.5199287 | AK74: 955.9393841 | AL74: 1003.621593 | AM74: 1109.203065 | AN74: 1116.321127 | AO74: 1155.504158 | AP74: 1209.52915 | AQ74: 1139.944785 | AR74: 1036.419883 | AS74: 1200.887711 | AT74: 1171.051413 | AU74: 1118.305564 | AV74: 1012.82514 | AW74: 1073.641299 | AX74: 1084.101042 | AY74: 935.1742673 | AZ74: 1048.057381
A75: 12 | B75: 2000 | C75: 1750 | D75: 1615.394726 | E75: 1497.746329 | F75: 1495.365845 | G75: 1501.154769 | H75: 1449.588971 | I75: 1420.090184 | J75: 1451.512199 | K75: 1522.461822 | L75: 1400.246386 | M75: 1250.589922 | N75: 1212.623224 | O75: 1254.342521 | P75: 1293.255506 | Q75: 1243.92605 | R75: 1150.072614 | S75: 1194.387796 | T75: 1354.47804 | U75: 1305.528691 | V75: 1197.177436 | W75: 1231.004713 | X75: 1292.832842 | Y75: 1225.549356 | Z75: 1355.445352 | AA75: 1310.816954 | AB75: 1335.416535 | AC75: 1454.319096 | AD75: 1320.912142 | AE75: 1398.784349 | AF75: 1471.447899 | AG75: 1366.414698 | AH75: 1322.457342 | AI75: 1157.687749 | AJ75: 1128.036293 | AK75: 1033.997845 | AL75: 1001.340319 | AM75: 911.7036025 | AN75: 976.6726472 | AO75: 1068.929657 | AP75: 1031.829022 | AQ75: 1215.487845 | AR75: 1219.628362 | AS75: 1289.991673 | AT75: 1314.237454 | AU75: 1537.826687 | AV75: 1463.960493 | AW75: 1510.755699 | AX75: 1393.603636 | AY75: 1237.302565 | AZ75: 1241.404828
A76: 13 | B76: 2000 | C76: 1750 | D76: 1567.198659 | E76: 1503.666868 | F76: 1357.131809 | G76: 1293.120289 | H76: 1187.726661 | I76: 1297.854849 | J76: 1278.668831 | K76: 1262.439643 | L76: 1206.103488 | M76: 1166.20043 | N76: 1017.895721 | O76: 1061.158989 | P76: 1162.417145 | Q76: 1137.908322 | R76: 1216.95156 | S76: 918.3342072 | T76: 903.985296 | U76: 843.6213139 | V76: 802.3861199 | W76: 671.4992673 | X76: 665.1709922 | Y76: 604.9594865 | Z76: 537.3925813 | AA76: 622.2314276 | AB76: 692.2119759 | AC76: 681.2558096 | AD76: 746.6581576 | AE76: 508.5719976 | AF76: 451.5441102 | AG76: 379.9482618 | AH76: 317.4876918 | AI76: 136.7593727 | AJ76: 0 | AK76: 0 | AL76: 0 | AM76: 0 | AN76: 0 | AO76: 0 | AP76: 0 | AQ76: 0 | AR76: 0 | AS76: 0 | AT76: 0 | AU76: 0 | AV76: 0 | AW76: 0 | AX76: 0 | AY76: 0 | AZ76: 0
A77: 14 | B77: 2000 | C77: 1750 | D77: 1671.28552 | E77: 1531.643878 | F77: 1537.220246 | G77: 1387.504103 | H77: 1322.045809 | I77: 1507.921842 | J77: 1398.489688 | K77: 1436.240957 | L77: 1505.07903 | M77: 1355.415356 | N77: 1323.882052 | O77: 1209.506252 | P77: 1223.176433 | Q77: 1179.878172 | R77: 1194.690889 | S77: 1272.126358 | T77: 1144.217755 | U77: 1172.075546 | V77: 1309.31467 | W77: 1137.091902 | X77: 1144.102689 | Y77: 1221.947081 | Z77: 1210.283698 | AA77: 1039.233334 | AB77: 832.0558643 | AC77: 895.4639728 | AD77: 770.1585245 | AE77: 789.4403654 | AF77: 597.7169785 | AG77: 603.8104782 | AH77: 576.8056327 | AI77: 528.6607855 | AJ77: 504.8243878 | AK77: 577.0871535 | AL77: 586.2566569 | AM77: 502.7273468 | AN77: 512.9134817 | AO77: 449.5760739 | AP77: 468.3107616 | AQ77: 430.6961639 | AR77: 422.7128286 | AS77: 322.0739589 | AT77: 229.2090587 | AU77: 133.7144029 | AV77: 0 | AW77: 0 | AX77: 0 | AY77: 0 | AZ77: 0
A78: 15 | B78: 2000 | C78: 1750 | D78: 1562.040765 | E78: 1526.956105 | F78: 1439.865124 | G78: 1426.786975 | H78: 1331.650783 | I78: 1498.174621 | J78: 1434.90696 | K78: 1477.75799 | L78: 1495.185765 | M78: 1482.698786 | N78: 1355.381583 | O78: 1178.861348 | P78: 1139.991414 | Q78: 1123.877055 | R78: 1049.039565 | S78: 1043.707934 | T78: 1011.436731 | U78: 1090.723078 | V78: 1008.72765 | W78: 1069.99482 | X78: 980.3642065 | Y78: 943.8947955 | Z78: 1152.411182 | AA78: 1062.801102 | AB78: 1167.451459 | AC78: 1209.688445 | AD78: 1178.327958 | AE78: 1197.617104 | AF78: 1141.260782 | AG78: 1129.525382 | AH78: 1270.460278 | AI78: 1235.699719 | AJ78: 1095.919375 | AK78: 1018.636134 | AL78: 1054.547364 | AM78: 1073.157822 | AN78: 1027.457233 | AO78: 1159.706902 | AP78: 1149.049564 | AQ78: 1139.440723 | AR78: 1208.949448 | AS78: 1195.343284 | AT78: 1203.441143 | AU78: 1171.997685 | AV78: 1169.750894 | AW78: 1130.166189 | AX78: 1115.132387 | AY78: 991.3514975 | AZ78: 1082.91565
A79: 16 | B79: 2000 | C79: 1750 | D79: 1574.497234 | E79: 1414.742463 | F79: 1226.178926 | G79: 1382.741778 | H79: 1380.76057 | I79: 1326.970674 | J79: 1311.128639 | K79: 1115.352852 | L79: 1097.468579 | M79: 1122.365541 | N79: 1119.310061 | O79: 1207.287519 | P79: 1068.010943 | Q79: 1069.529962 | R79: 1354.216162 | S79: 1460.964806 | T79: 1537.567684 | U79: 1537.854734 | V79: 1507.571948 | W79: 1265.243046 | X79: 1215.813063 | Y79: 1020.318312 | Z79: 1150.85959 | AA79: 1136.24867 | AB79: 1142.002584 | AC79: 1276.49339 | AD79: 1324.584902 | AE79: 1256.172863 | AF79: 1220.010417 | AG79: 1313.087562 | AH79: 1073.752976 | AI79: 1023.091873 | AJ79: 932.6714225 | AK79: 755.9902645 | AL79: 667.1956754 | AM79: 527.7983408 | AN79: 485.9649607 | AO79: 429.5312433 | AP79: 417.3345637 | AQ79: 378.8488087 | AR79: 144.8146412 | AS79: 0 | AT79: 0 | AU79: 0 | AV79: 0 | AW79: 0 | AX79: 0 | AY79: 0 | AZ79: 0
A80: 17 | B80: 2000 | C80: 1750 | D80: 1670.958235 | E80: 1636.907236 | F80: 1512.08277 | G80: 1425.530213 | H80: 1372.041267 | I80: 1341.058577 | J80: 1208.18232 | K80: 1043.509249 | L80: 1004.540733 | M80: 1140.063278 | N80: 1241.353625 | O80: 1385.183769 | P80: 1323.260106 | Q80: 1275.610948 | R80: 1163.914201 | S80: 1220.17056 | T80: 1162.615645 | U80: 1041.491062 | V80: 1113.041031 | W80: 1108.577606 | X80: 1089.784932 | Y80: 1038.084999 | Z80: 1034.291951 | AA80: 1046.82762 | AB80: 996.2002597 | AC80: 923.8630643 | AD80: 1022.120829 | AE80: 1077.892229 | AF80: 922.8153514 | AG80: 1039.949967 | AH80: 1116.508172 | AI80: 973.2078573 | AJ80: 1034.690449 | AK80: 1145.29215 | AL80: 1159.270504 | AM80: 1107.138664 | AN80: 1158.309297 | AO80: 1171.333332 | AP80: 1062.184212 | AQ80: 946.4346028 | AR80: 843.9818593 | AS80: 780.9027585 | AT80: 801.6407572 | AU80: 666.9200117 | AV80: 695.8685581 | AW80: 687.6228491 | AX80: 726.3735486 | AY80: 709.106425 | AZ80: 860.5174229
A81: 18 | B81: 2000 | C81: 1750 | D81: 1557.929554 | E81: 1556.776627 | F81: 1261.766467 | G81: 1223.323885 | H81: 1153.596362 | I81: 1139.821835 | J81: 1029.353973 | K81: 953.8832823 | L81: 807.9519675 | M81: 825.1240085 | N81: 832.6998953 | O81: 924.9073525 | P81: 1062.277597 | Q81: 1027.763178 | R81: 988.5971946 | S81: 936.7327148 | T81: 910.6066709 | U81: 1014.613542 | V81: 1044.374612 | W81: 976.3093805 | X81: 1147.912293 | Y81: 1154.694568 | Z81: 1132.745007 | AA81: 1042.332696 | AB81: 1142.401938 | AC81: 1111.078597 | AD81: 1290.28113 | AE81: 1289.964906 | AF81: 1202.929955 | AG81: 1233.449494 | AH81: 1277.077321 | AI81: 1475.885307 | AJ81: 1414.972436 | AK81: 1254.116394 | AL81: 1032.417618 | AM81: 1063.046462 | AN81: 1086.823146 | AO81: 1087.367203 | AP81: 985.6925603 | AQ81: 750.4659436 | AR81: 666.8446062 | AS81: 563.7518693 | AT81: 507.5732509 | AU81: 579.9824964 | AV81: 617.2936995 | AW81: 807.4628421 | AX81: 640.2396375 | AY81: 690.9201542 | AZ81: 714.8105286
A82: 19 | B82: 2000 | C82: 1750 | D82: 1576.345925 | E82: 1541.752258 | F82: 1410.094902 | G82: 1368.196392 | H82: 1441.687381 | I82: 1349.131079 | J82: 1450.814452 | K82: 1403.789205 | L82: 1496.068264 | M82: 1410.566208 | N82: 1329.069054 | O82: 1332.587061 | P82: 1429.717457 | Q82: 1394.925833 | R82: 1470.931665 | S82: 1520.14766 | T82: 1552.199347 | U82: 1500.371789 | V82: 1452.378698 | W82: 1500.855131 | X82: 1461.714662 | Y82: 1391.07922 | Z82: 1249.083157 | AA82: 1288.575051 | AB82: 1497.149875 | AC82: 1402.29777 | AD82: 1478.04822 | AE82: 1370.853694 | AF82: 1288.250673 | AG82: 1246.770366 | AH82: 1302.181638 | AI82: 1455.021689 | AJ82: 1426.207323 | AK82: 1464.40258 | AL82: 1300.593185 | AM82: 1308.199374 | AN82: 1247.320197 | AO82: 1303.746402 | AP82: 1210.713858 | AQ82: 1054.321847 | AR82: 1001.571002 | AS82: 835.1887032 | AT82: 501.3218825 | AU82: 521.6974382 | AV82: 441.9388816 | AW82: 408.4610252 | AX82: 377.4844868 | AY82: 335.0690045 | AZ82: 247.553159
A83: 20 | B83: 2000 | C83: 1750 | D83: 1650.065659 | E83: 1590.641349 | F83: 1384.829305 | G83: 1347.538668 | H83: 1528.685694 | I83: 1475.37013 | J83: 1493.027851 | K83: 1277.064115 | L83: 1269.009976 | M83: 1196.390231 | N83: 1227.933217 | O83: 1098.962887 | P83: 1104.838264 | Q83: 1090.24368 | R83: 1065.155699 | S83: 1150.584621 | T83: 1222.91846 | U83: 1211.28407 | V83: 1185.236196 | W83: 1113.244227 | X83: 1061.93564 | Y83: 942.4104189 | Z83: 1093.17629 | AA83: 1124.404099 | AB83: 1158.787757 | AC83: 1037.841771 | AD83: 1023.513591 | AE83: 1019.281259 | AF83: 1119.682035 | AG83: 1050.681118 | AH83: 935.1926286 | AI83: 872.3741256 | AJ83: 753.4773341 | AK83: 889.669476 | AL83: 959.706115 | AM83: 965.643592 | AN83: 998.2279605 | AO83: 985.5690462 | AP83: 925.7695487 | AQ83: 824.6526899 | AR83: 673.8652491 | AS83: 563.0331344 | AT83: 563.4762734 | AU83: 516.6754556 | AV83: 543.9834602 | AW83: 358.3497962 | AX83: 250.6640334 | AY83: 184.008758 | AZ83: 0
A84: Mean | B84: =AVERAGE(B64:B83) -> 2000 | C84: =AVERAGE(C64:C83) -> 1750 | D84: 1610.109502 | E84: 1539.650736 | F84: 1445.22829 | G84: 1392.563654 | H84: 1345.366315 | I84: 1346.841682 | J84: 1313.656856 | K84: 1282.572862 | L84: 1245.122295 | M84: 1205.004511 | N84: 1148.296568 | O84: 1148.138995 | P84: 1149.366094 | Q84: 1127.322379 | R84: 1116.151759 | S84: 1128.79855 | T84: 1128.211003 | U84: 1124.43186 | V84: 1101.934622 | W84: 1055.031247 | X84: 1035.068463 | Y84: 1015.689438 | Z84: 1004.954839 | AA84: 976.286823 | AB84: 985.4195684 | AC84: 969.0076668 | AD84: 968.6123734 | AE84: 938.6463421 | AF84: 912.9531667 | AG84: 896.3863928 | AH84: 879.6297457 | AI84: 844.5902787 | AJ84: 798.6556298 | AK84: 768.3007765 | AL84: 752.8147009 | AM84: 731.4447094 | AN84: 723.6588751 | AO84: 726.8689333 | AP84: 707.7893022 | AQ84: 673.094435 | AR84: 638.8869359 | AS84: 595.2716951 | AT84: 554.4217835 | AU84: 559.5287293 | AV84: 549.7380427 | AW84: 539.9050974 | AX84: 520.2309909 | AY84: 475.6345953 | AZ84: 457.8445596
A85: SD | B85: =STDEV(B64:B83) -> 0 | C85: =STDEV(C64:C83) -> 0 | D85: 43.93856509 | E85: 65.74031872 | F85: 95.37403766 | G85: 83.16742354 | H85: 103.1669476 | I85: 104.4632048 | J85: 162.1370773 | K85: 192.5118326 | L85: 199.9551974 | M85: 172.3491011 | N85: 166.7212719 | O85: 175.7929631 | P85: 177.7747552 | Q85: 186.0936217 | R85: 220.0068058 | S85: 247.5579922 | T85: 277.8466424 | U85: 308.5011353 | V85: 330.0565338 | W85: 317.6029361 | X85: 318.2986391 | Y85: 334.9801901 | Z85: 338.0366999 | AA85: 334.6796179 | AB85: 357.7954174 | AC85: 381.5193912 | AD85: 414.8217453 | AE85: 445.5084089 | AF85: 469.066883 | AG85: 478.2908343 | AH85: 493.5664014 | AI85: 524.0209177 | AJ85: 519.0042362 | AK85: 508.0392261 | AL85: 495.016976 | AM85: 493.5561588 | AN85: 483.8773797 | AO85: 500.1262749 | AP85: 480.3255825 | AQ85: 476.1774117 | AR85: 486.8435985 | AS85: 504.1582069 | AT85: 500.1633619 | AU85: 530.0559302 | AV85: 538.0483732 | AW85: 543.5070104 | AX85: 537.864123 | AY85: 508.3238753 | AZ85: 509.3540495
A87: Effort | B87: Time
A88: Trial | B88: 0 | C88: 1 | D88: 2 | E88: 3 | F88: 4 | G88: 5 | H88: 6 | I88: 7 | J88: 8 | K88: 9 | L88: 10 | M88: 11 | N88: 12 | O88: 13 | P88: 14 | Q88: 15 | R88: 16 | S88: 17 | T88: 18 | U88: 19 | V88: 20 | W88: 21 | X88: 22 | Y88: 23 | Z88: 24 | AA88: 25 | AB88: 26 | AC88: 27 | AD88: 28 | AE88: 29 | AF88: 30 | AG88: 31 | AH88: 32 | AI88: 33 | AJ88: 34 | AK88: 35 | AL88: 36 | AM88: 37 | AN88: 38 | AO88: 39 | AP88: 40 | AQ88: 41 | AR88: 42 | AS88: 43 | AT88: 44 | AU88: 45 | AV88: 46 | AW88: 47 | AX88: 48 | AY88: 49 | AZ88: 50
A89: 1 | B89: 2000 | C89: 1500 | D89: 1402.674767 | E89: 1264.229183 | F89: 1067.553607 | G89: 991.4532169 | H89: 799.2912518 | I89: 718.5701912 | J89: 858.0114165 | K89: 877.3285929 | L89: 965.8922596 | M89: 985.9153096 | N89: 1102.145749 | O89: 1276.59834 | P89: 1003.517299 | Q89: 889.4003393 | R89: 1023.234669 | S89: 1093.157471 | T89: 958.7830959 | U89: 831.447711 | V89: 939.1878542 | W89: 823.5511909 | X89: 833.3494521 | Y89: 720.4336095 | Z89: 658.0347201 | AA89: 852.7297054 | AB89: 1003.050501 | AC89: 1136.552583 | AD89: 1094.357538 | AE89: 1249.273795 | AF89: 1133.024944 | AG89: 1193.312744 | AH89: 1124.507122 | AI89: 1064.758783 | AJ89: 1180.229123 | AK89: 1049.623817 | AL89: 1074.371124 | AM89: 1128.872685 | AN89: 1009.12308 | AO89: 975.6364227 | AP89: 1210.018888 | AQ89: 1188.01201 | AR89: 1108.518945 | AS89: 1010.310103 | AT89: 1034.978718 | AU89: 1134.764245 | AV89: 1085.020238 | AW89: 1163.838046 | AX89: 1067.591428 | AY89: 1093.783499 | AZ89: 1184.193892
A90: 2 | B90: 2000 | C90: 1500 | D90: 1335.750413 | E90: 1164.06706 | F90: 1040.395078 | G90: 1013.912622 | H90: 1034.658161 | I90: 931.6274681 | J90: 937.3224395 | K90: 800.5367203 | L90: 840.7517236 | M90: 793.3542574 | N90: 1013.919347 | O90: 990.6799456 | P90: 975.4627368 | Q90: 1171.712852 | R90: 1080.114653 | S90: 881.719048 | T90: 1005.006357 | U90: 959.6998908 | V90: 1031.702905 | W90: 1169.058022 | X90: 952.6525878 | Y90: 876.9150027 | Z90: 832.2162097 | AA90: 1111.238546 | AB90: 960.6340938 | AC90: 847.5483167 | AD90: 1044.18771 | AE90: 947.8693353 | AF90: 1088.448265 | AG90: 997.5564582 | AH90: 955.579774 | AI90: 977.8869617 | AJ90: 896.779443 | AK90: 956.092687 | AL90: 1060.352743 | AM90: 1055.431247 | AN90: 995.3542593 | AO90: 1147.282177 | AP90: 1036.208888 | AQ90: 1095.31712 | AR90: 1125.63355 | AS90: 938.8115979 | AT90: 1009.868229 | AU90: 1082.67955 | AV90: 1212.868668 | AW90: 1236.449353 | AX90: 1151.216817 | AY90: 1139.002075 | AZ90: 1118.003967
A91: 3 | B91: 2000 | C91: 1500 | D91: 1328.056116 | E91: 1317.05618 | F91: 1288.910946 | G91: 1138.805065 | H91: 855.4511879 | I91: 980.0729643 | J91: 929.5719282 | K91: 934.518115 | L91: 899.7660381 | M91: 842.6661995 | N91: 833.5559494 | O91: 814.3236454 | P91: 1023.562202 | Q91: 1038.287157 | R91: 1183.701609 | S91: 1075.752726 | T91: 1228.16717 | U91: 1231.853405 | V91: 1068.509877 | W91: 1008.821027 | X91: 1208.418715 | Y91: 1131.248116 | Z91: 1136.016038 | AA91: 1308.288314 | AB91: 1166.97703 | AC91: 1093.189696 | AD91: 1097.211505 | AE91: 1051.822665 | AF91: 914.5765684 | AG91: 906.181935 | AH91: 1060.811534 | AI91: 1078.683515 | AJ91: 1040.876761 | AK91: 1039.009695 | AL91: 1220.682485 | AM91: 1101.525391 | AN91: 1162.903662 | AO91: 931.5864789 | AP91: 863.8264088 | AQ91: 846.0361262 | AR91: 895.050267 | AS91: 978.4208182 | AT91: 987.0630126 | AU91: 995.6547055 | AV91: 865.0094962 | AW91: 913.110136 | AX91: 865.7749111 | AY91: 850.0285628 | AZ91: 847.6440348
A92: 4 | B92: 2000 | C92: 1500 | D92: 1272.587926 | E92: 1190.474551 | F92: 1195.734667 | G92: 973.0117627 | H92: 1051.182585 | I92: 1264.63995 | J92: 1050.704389 | K92: 889.3600081 | L92: 882.874163 | M92: 801.2740426 | N92: 885.8246325 | O92: 798.8063022 | P92: 772.2366556 | Q92: 780.6963086 | R92: 933.186443 | S92: 943.8190742 | T92: 1075.048315 | U92: 1146.734206 | V92: 1049.915381 | W92: 1285.281057 | X92: 1128.375311 | Y92: 1007.996745 | Z92: 988.4378624 | AA92: 976.8999314 | AB92: 920.538507 | AC92: 855.2912382 | AD92: 952.8253155 | AE92: 1237.241105 | AF92: 1031.554834 | AG92: 860.8490079 | AH92: 902.1846319 | AI92: 881.0507154 | AJ92: 777.1554849 | AK92: 852.3436439 | AL92: 721.4219777 | AM92: 674.8678544 | AN92: 777.411762 | AO92: 753.4162402 | AP92: 978.4576769 | AQ92: 927.7541659 | AR92: 854.6993589 | AS92: 936.8168942 | AT92: 822.6813146 | AU92: 988.1202244 | AV92: 977.3786592 | AW92: 883.0399321 | AX92: 618.0057985 | AY92: 661.9985004 | AZ92: 784.9026415
A93: 5 | B93: 2000 | C93: 1500 | D93: 1274.546303 | E93: 1341.389671 | F93: 1244.911214 | G93: 1117.849267 | H93: 986.0087671 | I93: 818.837723 | J93: 746.525028 | K93: 846.1953887 | L93: 852.3022205 | M93: 900.5156897 | N93: 942.2198729 | O93: 862.5239653 | P93: 943.8099079 | Q93: 829.453092 | R93: 735.5169335 | S93: 681.7596495 | T93: 686.1829847 | U93: 714.2043959 | V93: 738.5202309 | W93: 630.2287194 | X93: 609.8092058 | Y93: 761.1480987 | Z93: 825.7312983 | AA93: 936.9378586 | AB93: 1104.206991 | AC93: 1179.5183 | AD93: 1166.780648 | AE93: 948.6445587 | AF93: 909.0180576 | AG93: 893.2843068 | AH93: 776.713771 | AI93: 699.0456647 | AJ93: 723.8721807 | AK93: 990.3966802 | AL93: 910.9916263 | AM93: 832.2248854 | AN93: 886.0304054 | AO93: 810.2599143 | AP93: 898.9076175 | AQ93: 968.0890854 | AR93: 834.5447882 | AS93: 925.1245182 | AT93: 997.6833584 | AU93: 1059.099877 | AV93: 919.7350821 | AW93: 1150.223426 | AX93: 1165.475118 | AY93: 1263.644935 | AZ93: 1231.219784
A94: 6 | B94: 2000 | C94: 1500 | D94: 1189.726809 | E94: 1024.383945 | F94: 948.7767562 | G94: 844.407627 | H94: 1002.446526 | I94: 898.1665154 | J94: 869.6936503 | K94: 822.5317781 | L94: 900.5654239 | M94: 897.5936887 | N94: 1001.521993 | O94: 1045.908466 | P94: 1103.554675 | Q94: 1160.79346 | R94: 1112.273108 | S94: 1063.852886 | T94: 1140.606365 | U94: 1114.002396 | V94: 1054.373944 | W94: 1043.80949 | X94: 1055.355055 | Y94: 914.3031398 | Z94: 1059.463279 | AA94: 975.0940513 | AB94: 1048.561184 | AC94: 1125.106256 | AD94: 913.9974902 | AE94: 980.6076033 | AF94: 874.8557014 | AG94: 960.7970927 | AH94: 955.5292578 | AI94: 824.1222215 | AJ94: 784.5389428 | AK94: 831.2420371 | AL94: 1017.57745 | AM94: 1104.61767 | AN94: 1021.614618 | AO94: 950.5827398 | AP94: 921.9608594 | AQ94: 831.4689514 | AR94: 923.6482108 | AS94: 1036.594916 | AT94: 1024.497765 | AU94: 1063.410003 | AV94: 1061.284153 | AW94: 1293.15938 | AX94: 1148.872335 | AY94: 1004.392263 | AZ94: 959.1045255
A95: 7 | B95: 2000 | C95: 1500 | D95: 1266.551679 | E95: 1121.234087 | F95: 1033.261711 | G95: 947.729462 | H95: 895.3127089 | I95: 904.0502994 | J95: 1131.137688 | K95: 1044.806095 | L95: 991.349949 | M95: 950.1297052 | N95: 975.5152786 | O95: 1102.344273 | P95: 1033.753437 | Q95: 879.1194646 | R95: 813.2190216 | S95: 1020.096058 | T95: 720.8116451 | U95: 826.830602 | V95: 1030.051508 | W95: 1018.199069 | X95: 927.1274681 | Y95: 946.7615434 | Z95: 834.3868507 | AA95: 802.6337917 | AB95: 792.9003605 | AC95: 679.1307921 | AD95: 764.7161701 | AE95: 665.1542047 | AF95: 824.1084628 | AG95: 902.8505242 | AH95: 986.0749302 | AI95: 1050.326512 | AJ95: 979.770152 | AK95: 971.417529 | AL95: 752.7160576 | AM95: 759.8642025 | AN95: 721.8342882 | AO95: 872.6019265 | AP95: 942.480959 | AQ95: 1014.149839 | AR95: 988.4387557 | AS95: 1010.454523 | AT95: 768.3569007 | AU95: 896.1317125 | AV95: 938.7916154 | AW95: 997.0571272 | AX95: 969.1797395 | AY95: 927.8230482 | AZ95: 917.9951962
A96: 8 | B96: 2000 | C96: 1500 | D96: 1305.008238 | E96: 1151.379459 | F96: 1199.113736 | G96: 1002.197368 | H96: 894.6067091 | I96: 1121.964147 | J96: 1026.513461 | K96: 1034.543382 | L96: 986.9089755 | M96: 1066.323807 | N96: 1110.612571 | O96: 1049.924883 | P96: 1130.251736 | Q96: 1240.860739 | R96: 1108.542871 | S96: 1203.734486 | T96: 1162.995617 | U96: 1158.505517 | V96: 1127.422136 | W96: 866.7098878 | X96: 910.5899085 | Y96: 993.6140522 | Z96: 1104.591983 | AA96: 1208.441366 | AB96: 1160.398504 | AC96: 1029.286285 | AD96: 1104.605829 | AE96: 1045.317172 | AF96: 1073.118155 | AG96: 1178.311036 | AH96: 978.1901728 | AI96: 1069.043369 | AJ96: 995.9561821 | AK96: 1000.583296 | AL96: 1020.975981 | AM96: 1110.673461 | AN96: 1254.868413 | AO96: 1066.36461 | AP96: 1096.106684 | AQ96: 1000.884275 | AR96: 1229.185194 | AS96: 1109.539294 | AT96: 1088.192603 | AU96: 1126.415499 | AV96: 1116.375506 | AW96: 1256.247123 | AX96: 1140.24743 | AY96: 1209.801972 | AZ96: 1172.091552
A97: 9 | B97: 2000 | C97: 1500 | D97: 1413.176977 | E97: 1220.477543 | F97: 1050.566383 | G97: 1038.165951 | H97: 942.607813 | I97: 843.7707489 | J97: 640.4766421 | K97: 658.4909129 | L97: 660.4673861 | M97: 680.9650758 | N97: 779.5133325 | O97: 679.1642809 | P97: 774.6129922 | Q97: 940.8790942 | R97: 925.3612973 | S97: 871.1064265 | T97: 977.6696824 | U97: 1159.099782 | V97: 1124.682144 | W97: 1114.480604 | X97: 1145.402751 | Y97: 1036.938615 | Z97: 901.4871897 | AA97: 869.9814438 | AB97: 892.7481136 | AC97: 1034.700864 | AD97: 918.948549 | AE97: 1081.836882 | AF97: 980.9189251 | AG97: 1114.022494 | AH97: 1081.279249 | AI97: 950.3462296 | AJ97: 981.8666525 | AK97: 938.5456357 | AL97: 920.0232672 | AM97: 900.5111663 | AN97: 1101.996886 | AO97: 1089.185714 | AP97: 1143.025799 | AQ97: 1082.411989 | AR97: 1283.52442 | AS97: 1103.42951 | AT97: 1089.218695 | AU97: 1057.948861 | AV97: 1023.008389 | AW97: 998.0838484 | AX97: 860.6217214 | AY97: 907.3732214 | AZ97: 822.6531572
A98: 10 | B98: 2000 | C98: 1500 | D98: 1293.07664 | E98: 1194.221744 | F98: 1090.391886 | G98: 1133.891612 | H98: 1105.22208 | I98: 1149.768047 | J98: 1195.439864 | K98: 1099.764329 | L98: 1113.058995 | M98: 1153.310715 | N98: 1020.661804 | O98: 1005.067069 | P98: 1041.732821 | Q98: 1117.793727 | R98: 1167.021622 | S98: 1021.74253 | T98: 1109.95898 | U98: 1074.920177 | V98: 1129.912603 | W98: 1059.489496 | X98: 1135.164389 | Y98: 1132.04942 | Z98: 1104.946846 | AA98: 1179.947207 | AB98: 1108.25864 | AC98: 1053.530895 | AD98: 1038.092333 | AE98: 1005.445001 | AF98: 1160.196855 | AG98: 1143.623897 | AH98: 1037.772189 | AI98: 990.6522152 | AJ98: 893.0315176 | AK98: 716.5539199 | AL98: 768.7680562 | AM98: 957.206564 | AN98: 938.9336391 | AO98: 800.3326327 | AP98: 696.7426188 | AQ98: 602.952814 | AR98: 566.1218857 | AS98: 597.877087 | AT98: 740.1490998 | AU98: 800.487077 | AV98: 957.3877223 | AW98: 893.0946113 | AX98: 946.640676 | AY98: 898.8771651 | AZ98: 889.8280505
A99: 11 | B99: 2000 | C99: 1500 | D99: 1334.534099 | E99: 1182.778023 | F99: 1120.104751 | G99: 960.0927532 | H99: 1050.120414 | I99: 1178.00791 | J99: 1110.695927 | K99: 1049.241569 | L99: 917.4539456 | M99: 873.4399264 | N99: 836.3509314 | O99: 916.2043552 | P99: 1009.94804 | Q99: 1083.798752 | R99: 1042.645137 | S99: 992.8583589 | T99: 952.9965378 | U99: 738.7636889 | V99: 740.251261 | W99: 912.205249 | X99: 1013.070266 | Y99: 849.6138224 | Z99: 1035.508579 | AA99: 1122.588518 | AB99: 1139.34516 | AC99: 990.5619192 | AD99: 914.7045972 | AE99: 873.338573 | AF99: 896.1803477 | AG99: 850.4108682 | AH99: 906.4603491 | AI99: 973.5229952 | AJ99: 867.5731623 | AK99: 932.463361 | AL99: 947.1489885 | AM99: 964.2718225 | AN99: 955.0425849 | AO99: 930.8556571 | AP99: 978.8030433 | AQ99: 920.4052538 | AR99: 997.4103001 | AS99: 931.7528514 | AT99: 920.0063943 | AU99: 963.6142258 | AV99: 1019.588464 | AW99: 1094.656795 | AX99: 1084.970638 | AY99: 939.2171629 | AZ99: 951.2579263
A100: 12 | B100: 2000 | C100: 1500 | D100: 1266.398316 | E100: 1202.013266 | F100: 1167.729896 | G100: 1069.299615 | H100: 1080.232852 | I100: 1000.480784 | J100: 980.9714577 | K100: 860.892564 | L100: 1019.005509 | M100: 952.6269582 | N100: 1028.351669 | O100: 885.8672194 | P100: 982.492338 | Q100: 1037.958295 | R100: 1161.793977 | S100: 1290.483923 | T100: 1175.414645 | U100: 1031.681873 | V100: 1106.214886 | W100: 806.8963047 | X100: 838.9012186 | Y100: 911.2988776 | Z100: 989.9652301 | AA100: 984.3008344 | AB100: 991.7948924 | AC100: 987.4907314 | AD100: 966.821709 | AE100: 1044.197817 | AF100: 1002.564303 | AG100: 805.1013545 | AH100: 742.154908 | AI100: 709.4853469 | AJ100: 756.4070185 | AK100: 859.651351 | AL100: 809.8073826 | AM100: 731.2994148 | AN100: 858.6737469 | AO100: 1018.177757 | AP100: 1047.224898 | AQ100: 1082.036188 | AR100: 989.7463766 | AS100: 1073.153387 | AT100: 1161.473361 | AU100: 1010.971799 | AV100: 1230.905598 | AW100: 1249.269716 | AX100: 1139.423103 | AY100: 1066.848896 | AZ100: 1013.653378
A101: 13 | B101: 2000 | C101: 1500 | D101: 1259.034643 | E101: 1301.131014 | F101: 1131.812471 | G101: 1119.497415 | H101: 1183.786862 | I101: 1115.451664 | J101: 937.2349637 | K101: 944.0561475 | L101: 1016.93782 | M101: 1153.988755 | N101: 1156.254173 | O101: 1086.000785 | P101: 1108.72494 | Q101: 979.0203537 | R101: 1026.820404 | S101: 982.1507758 | T101: 1191.545146 | U101: 1044.81386 | V101: 1182.941842 | W101: 1098.548329 | X101: 1072.335733 | Y101: 1165.358593 | Z101: 1251.520966 | AA101: 1205.957464 | AB101: 1196.044413 | AC101: 1328.823602 | AD101: 1371.233036 | AE101: 1215.361759 | AF101: 1078.328111 | AG101: 1225.29047 | AH101: 1233.702395 | AI101: 1187.151003 | AJ101: 1138.210538 | AK101: 1154.121856 | AL101: 1146.996527 | AM101: 983.0942248 | AN101: 893.1974172 | AO101: 1054.863715 | AP101: 1074.059675 | AQ101: 1204.679077 | AR101: 1115.477024 | AS101: 1242.495926 | AT101: 1065.21339 | AU101: 1019.687986 | AV101: 1140.84515 | AW101: 1166.986889 | AX101: 1052.069288 | AY101: 1145.096658 | AZ101: 1025.465268
A102: 14 | B102: 2000 | C102: 1500 | D102: 1311.551621 | E102: 1098.123465 | F102: 1138.079292 | G102: 1144.116953 | H102: 1088.864894 | I102: 1190.414855 | J102: 1194.689814 | K102: 1225.872961 | L102: 968.809703 | M102: 827.9462736 | N102: 867.9787609 | O102: 875.5053851 | P102: 1139.111508 | Q102: 1024.235905 | R102: 903.2354339 | S102: 879.7494991 | T102: 1089.540461 | U102: 811.1115693 | V102: 958.3242468 | W102: 1003.619023 | X102: 775.5365566 | Y102: 925.1426838 | Z102: 1015.77937 | AA102: 1194.35096 | AB102: 1309.914044 | AC102: 1195.863583 | AD102: 1053.611654 | AE102: 1101.546292 | AF102: 1243.540178 | AG102: 1179.598692 | AH102: 1305.169993 | AI102: 1177.449801 | AJ102: 1043.473309 | AK102: 911.3572759 | AL102: 675.4085755 | AM102: 761.0231174 | AN102: 770.5152867 | AO102: 595.682254 | AP102: 666.3750564 | AQ102: 736.629664 | AR102: 789.9969063 | AS102: 726.1799859 | AT102: 738.6713157 | AU102: 744.667098 | AV102: 773.3448462 | AW102: 958.2938864 | AX102: 1079.900535 | AY102: 1157.956195 | AZ102: 1242.769612
A103: 15 | B103: 2000 | C103: 1500 | D103: 1288.578503 | E103: 1157.556945 | F103: 876.1557831 | G103: 960.5981388 | H103: 1066.549605 | I103: 950.5613947 | J103: 983.444786 | K103: 929.3929941 | L103: 1123.955569 | M103: 976.6377515 | N103: 875.5580328 | O103: 1071.078877 | P103: 1030.953413 | Q103: 1055.398849 | R103: 868.5496225 | S103: 891.9579288 | T103: 1000.20956 | U103: 1093.362016 | V103: 983.1014511 | W103: 1023.349428 | X103: 929.245308 | Y103: 837.2253991 | Z103: 734.482751 | AA103: 774.3314987 | AB103: 990.221731 | AC103: 1184.972591 | AD103: 1050.36294 | AE103: 854.8496372 | AF103: 1030.24896 | AG103: 1037.270916 | AH103: 1070.008216 | AI103: 1116.421207 | AJ103: 1214.764664 | AK103: 1042.595792 | AL103: 885.9438264 | AM103: 770.6596 | AN103: 845.8529528 | AO103: 810.7807907 | AP103: 823.635197 | AQ103: 915.2499786 | AR103: 972.7660193 | AS103: 1006.959717 | AT103: 966.9891872 | AU103: 853.6476075 | AV103: 1066.406038 | AW103: 1057.779478 | AX103: 849.1695044 | AY103: 902.9016954 | AZ103: 881.8447304
A104: 16 | B104: 2000 | C104: 1500 | D104: 1277.665656 | E104: 1227.987318 | F104: 1122.20896 | G104: 1002.302669 | H104: 1052.191127 | I104: 1054.869265 | J104: 1078.478564 | K104: 906.6170789 | L104: 978.0810892 | M104: 936.4148142 | N104: 933.3570073 | O104: 1043.940173 | P104: 1066.621052 | Q104: 963.7746436 | R104: 943.1726854 | S104: 893.9291568 | T104: 764.5837889 | U104: 888.4828026 | V104: 924.712623 | W104: 913.1234814 | X104: 750.7595963 | Y104: 664.576371 | Z104: 681.2825077 | AA104: 737.9422312 | AB104: 551.921749 | AC104: 757.0737677 | AD104: 774.7458448 | AE104: 767.2567101 | AF104: 929.1215939 | AG104: 902.2055879 | AH104: 846.8149049 | AI104: 768.0521109 | AJ104: 822.5788677 | AK104: 888.3174745 | AL104: 917.4082032 | AM104: 1012.947747 | AN104: 1135.626492 | AO104: 1220.810983 | AP104: 1059.874677 | AQ104: 1097.602641 | AR104: 1049.304294 | AS104: 926.3206827 | AT104: 962.0676318 | AU104: 998.8231245 | AV104: 947.9595589 | AW104: 1005.250071 | AX104: 1006.734336 | AY104: 962.4598964 | AZ104: 997.8962229
A105: 17 | B105: 2000 | C105: 1500 | D105: 1316.815087 | E105: 1228.32899 | F105: 1209.559797 | G105: 1152.167525 | H105: 1114.173821 | I105: 1034.649038 | J105: 1059.584576 | K105: 872.97338 | L105: 980.0189579 | M105: 923.8955673 | N105: 1067.342764 | O105: 1016.25993 | P105: 1138.843258 | Q105: 878.7189235 | R105: 878.2574461 | S105: 1092.677917 | T105: 861.9179833 | U105: 889.6154973 | V105: 852.106897 | W105: 941.7448673 | X105: 876.7137443 | Y105: 820.8998892 | Z105: 937.7048346 | AA105: 873.7339441 | AB105: 872.5818042 | AC105: 822.023663 | AD105: 756.603696 | AE105: 945.793275 | AF105: 825.5665496 | AG105: 870.9562405 | AH105: 791.5795616 | AI105: 812.9686679 | AJ105: 844.7017183 | AK105: 920.2980782 | AL105: 819.6834753 | AM105: 858.2115793 | AN105: 726.2599824 | AO105: 736.8746533 | AP105: 768.7829413 | AQ105: 814.7725397 | AR105: 879.8541724 | AS105: 955.2671099 | AT105: 983.9921602 | AU105: 1153.256059 | AV105: 1171.851949 | AW105: 1256.860408 | AX105: 1137.059501 | AY105: 1078.239451 | AZ105: 890.3779368
A106: 18 | B106: 2000 | C106: 1500 | D106: 1240.389985 | E106: 1079.061947 | F106: 1054.12252 | G106: 913.1903636 | H106: 1058.052204 | I106: 969.7471728 | J106: 779.6504503 | K106: 807.3868361 | L106: 823.5880651 | M106: 833.6267547 | N106: 1021.615142 | O106: 1108.354632 | P106: 959.9704541 | Q106: 1135.650756 | R106: 1050.282683 | S106: 1008.363955 | T106: 1085.624366 | U106: 978.612155 | V106: 1106.711468 | W106: 1004.218619 | X106: 1079.345689 | Y106: 1027.584859 | Z106: 884.3822591 | AA106: 893.5892638 | AB106: 832.1334313 | AC106: 781.828866 | AD106: 867.5807775 | AE106: 935.9867581 | AF106: 1094.15731 | AG106: 967.5964137 | AH106: 859.2653472 | AI106: 1023.308792 | AJ106: 1065.423414 | AK106: 1060.66688 | AL106: 1250.720612 | AM106: 1379.853177 | AN106: 1052.871289 | AO106: 1042.801845 | AP106: 991.2080325 | AQ106: 1033.757562 | AR106: 1148.056889 | AS106: 973.53783 | AT106: 955.1412902 | AU106: 1068.30215 | AV106: 945.1430151 | AW106: 1013.421727 | AX106: 742.8207849 | AY106: 858.9780598 | AZ106: 1015.745917
A107: 19 | B107: 2000 | C107: 1500 | D107: 1276.868678 | E107: 1206.621355 | F107: 1238.089648 | G107: 1135.854599 | H107: 1022.521597 | I107: 1081.19999 | J107: 953.0252755 | K107: 1041.918277 | L107: 1071.234574 | M107: 1127.690468 | N107: 1046.523698 | O107: 871.0703117 | P107: 861.6452383 | Q107: 1007.57773 | R107: 1038.651862 | S107: 944.6369252 | T107: 933.8691793 | U107: 949.8315443 | V107: 950.046385 | W107: 1064.86141 | X107: 1032.077274 | Y107: 1006.980489 | Z107: 1169.522688 | AA107: 1081.949997 | AB107: 1006.752942 | AC107: 845.7301197 | AD107: 899.0891386 | AE107: 786.676831 | AF107: 895.5962313 | AG107: 1017.680918 | AH107: 936.4517885 | AI107: 995.0048444 | AJ107: 1148.232641 | AK107: 1126.116342 | AL107: 1110.305078 | AM107: 1046.495488 | AN107: 1156.338075 | AO107: 1034.212095 | AP107: 1030.590304 | AQ107: 1137.56153 | AR107: 999.5543259 | AS107: 1089.671417 | AT107: 1186.41894 | AU107: 1011.846612 | AV107: 1087.960617 | AW107: 996.4748767 | AX107: 997.70777 | AY107: 891.3928584 | AZ107: 871.5776707
A108: 20 | B108: 2000 | C108: 1500 | D108: 1339.536148 | E108: 1290.210502 | F108: 1009.925534 | G108: 1263.228135 | H108: 1089.161478 | I108: 1282.42852 | J108: 1148.322761 | K108: 1062.635978 | L108: 962.5114434 | M108: 965.8729112 | N108: 1084.055386 | O108: 954.1607753 | P108: 997.6737521 | Q108: 792.5487657 | R108: 873.4443431 | S108: 817.0467805 | T108: 675.3565693 | U108: 640.4270653 | V108: 777.4356648 | W108: 855.1195948 | X108: 649.0501684 | Y108: 644.1644748 | Z108: 844.1209096 | AA108: 1043.72417 | AB108: 994.7444725 | AC108: 882.3093594 | AD108: 1023.43542 | AE108: 860.5630164 | AF108: 939.1501097 | AG108: 947.8557414 | AH108: 914.0364473 | AI108: 852.6829027 | AJ108: 756.3249333 | AK108: 711.1543768 | AL108: 548.4396935 | AM108: 551.1758194 | AN108: 516.8301521 | AO108: 533.5852633 | AP108: 620.348751 | AQ108: 697.0716951 | AR108: 700.1585753 | AS108: 763.3933978 | AT108: 871.1343893 | AU108: 987.3031225 | AV108: 954.0780171 | AW108: 1012.69774 | AX108: 1081.673689 | AY108: 1224.083397 | AZ108: 1165.15597
A109: Mean | B109: =AVERAGE(B89:B108) -> 2000 | C109: =AVERAGE(C89:C108) -> 1500 | D109: 1299.62643 | E109: 1198.136312 | F109: 1111.370232 | G109: 1046.088606 | H109: 1018.622132 | I109: 1024.463932 | J109: 980.5747542 | K109: 935.4531554 | L109: 947.7766905 | M109: 932.2094335 | N109: 979.1439047 | O109: 972.6891808 | P109: 1004.923923 | Q109: 1000.38396 | R109: 993.4512911 | S109: 982.5297788 | T109: 989.8144225 | U109: 964.2000078 | V109: 993.8062654 | W109: 982.1657435 | X109: 946.1640199 | Y109: 918.7126901 | Z109: 949.4791186 | AA109: 1006.733055 | AB109: 1002.186428 | AC109: 990.5266714 | AD109: 988.6955951 | AE109: 979.9391496 | AF109: 996.2137232 | AG109: 997.737835 | AH109: 973.2143271 | AI109: 960.0981929 | AJ109: 945.5883352 | AK109: 947.6275864 | AL109: 928.9871566 | AM109: 934.2413559 | AN109: 939.0639496 | AO109: 918.7946934 | AP109: 942.4319488 | AQ109: 959.8421253 | AR109: 972.5845129 | AS109: 966.8055783 | AT109: 968.6898877 | AU109: 1000.841577 | AV109: 1024.747139 | AW109: 1079.799728 | AX109: 1005.257756 | AY109: 1009.194976 | AZ109: 999.1690716
A110: SD | B110: =STDEV(B89:B108) -> 0 | C110: =STDEV(C89:C108) -> 0 | D110: 51.73906927 | E110: 81.46511913 | F110: 104.3518675 | G110: 102.4528798 | H110: 96.61029019 | I110: 150.7267629 | J110: 150.0630301 | K110: 130.0841295 | L110: 107.1242158 | M110: 124.5835359 | N110: 105.4996414 | O110: 136.540148 | P110: 106.1503045 | Q110: 131.0459227 | R110: 125.7504372 | S110: 137.1019978 | T110: 171.9804758 | U110: 167.4798921 | V110: 133.221423 | W110: 145.0285558 | X110: 167.7329353 | Y110: 149.8168265 | Z110: 164.3019934 | AA110: 164.7925412 | AB110: 168.5915363 | AC110: 175.0739102 | AD110: 148.5647206 | AE110: 155.8682656 | AF110: 116.0402265 | AG110: 131.4465755 | AH110: 145.6289781 | AI110: 145.2325724 | AJ110: 154.8069388 | AK110: 118.2974904 | AL110: 186.5929771 | AM110: 194.8799747 | AN110: 182.9136293 | AO110: 178.9910834 | AP110: 160.9494496 | AQ110: 165.8049597 | AR110: 175.6397595 | AS110: 143.9513154 | AT110: 128.1491188 | AU110: 107.4809977 | AV110: 117.7145617 | AW110: 132.3174771 | AX110: 151.0328543 | AY110: 154.535575 | AZ110: 142.2616923
